[Event "Early-Titled-Tuesday-Blitz-April-16-2024"]
[Site "Chess.com"]
[Date "2024.04.16"]
[Round "8"]
[White "Laico"]
[Black "jodarmarlon1985"]
[Result "0-1"]
[WhiteElo "2400"]
[BlackElo "2298"]
[TimeControl "180+1"]
[EndTime "9:30:48 PDT"]
[Termination "jodarmarlon1985 won by checkmate"]

1. e4 {[%clk 0:03:00.9]} 1... e5 {[%clk 0:02:59.3]} 2. Nc3 {[%clk 0:03:00.7]}
2... Nf6 {[%clk 0:02:58.9]} 3. f4 {[%clk 0:02:58.6]} 3... d5 {[%clk 0:02:59]} 4.
fxe5 {[%clk 0:02:59]} 4... Nxe4 {[%clk 0:02:59.1]} 5. Qf3 {[%clk 0:02:59.8]}
5... f5 {[%clk 0:02:59]} 6. d3 {[%clk 0:02:59.6]} 6... Nxc3 {[%clk 0:02:59.6]}
7. bxc3 {[%clk 0:03:00.3]} 7... d4 {[%clk 0:03:00.1]} 8. Qg3 {[%clk 0:02:59.5]}
8... Nc6 {[%clk 0:02:57.4]} 9. Nf3 {[%clk 0:02:59]} 9... dxc3 {[%clk 0:02:41.6]}
10. Be3 {[%clk 0:02:57.8]} 10... Be6 {[%clk 0:02:41]} 11. Be2 {[%clk 0:02:51.6]}
11... Qd7 {[%clk 0:02:31.5]} 12. O-O {[%clk 0:02:50.9]} 12... O-O-O {[%clk
0:02:28.3]} 13. d4 {[%clk 0:02:51.4]} 13... h6 {[%clk 0:02:27]} 14. Nh4 {[%clk
0:02:49.6]} 14... g5 {[%clk 0:02:23.9]} 15. Nxf5 {[%clk 0:02:50]} 15... Bxf5
{[%clk 0:02:15.4]} 16. Rxf5 {[%clk 0:02:49.4]} 16... Nxd4 {[%clk 0:02:15.5]} 17.
Bxd4 {[%clk 0:02:44.8]} 17... Qxd4+ {[%clk 0:02:16.4]} 18. Kh1 {[%clk
0:02:44.4]} 18... Bc5 {[%clk 0:02:03.5]} 19. Rb1 {[%clk 0:02:34.3]} 19... Rhf8
{[%clk 0:01:47.8]} 20. Rxf8 {[%clk 0:01:54.3]} 20... Rxf8 {[%clk 0:01:48.7]} 21.
Qh3+ {[%clk 0:01:54.4]} 21... Kb8 {[%clk 0:01:44.2]} 22. Bf3 {[%clk 0:01:53.2]}
22... Bb6 {[%clk 0:01:43.4]} 23. Qxh6 {[%clk 0:01:50]} 23... Qf4 {[%clk
0:01:23]} 24. e6 {[%clk 0:01:38.8]} 24... Qd6 {[%clk 0:00:31.4]} 25. Re1 {[%clk
0:01:28.2]} 25... Qe7 {[%clk 0:00:25]} 26. Rd1 {[%clk 0:01:18.8]} 26... g4
{[%clk 0:00:18.2]} 27. Bxg4 {[%clk 0:01:16.1]} 27... a5 {[%clk 0:00:13.5]} 28.
Bf3 {[%clk 0:01:11.8]} 28... Rd8 {[%clk 0:00:11]} 29. Rf1 {[%clk 0:00:42.5]}
29... Rd2 {[%clk 0:00:05.4]} 30. Qg6 {[%clk 0:00:42.1]} 30... Ka7 {[%clk
0:00:04.2]} 31. h4 {[%clk 0:00:34.3]} 31... Qxh4# {[%clk 0:00:03]} 0-1

[Event "Early-Titled-Tuesday-Blitz-April-16-2024"]
[Site "Chess.com"]
[Date "2024.04.16"]
[Round "8"]
[White "karinachess1"]
[Black "francyIM"]
[Result "0-1"]
[WhiteElo "2618"]
[BlackElo "2809"]
[TimeControl "180+1"]
[EndTime "9:30:50 PDT"]
[Termination "francyIM won on time"]

1. d4 {[%clk 0:03:00.9]} 1... Nf6 {[%clk 0:02:58.4]} 2. c4 {[%clk 0:03:00.1]}
2... e6 {[%clk 0:02:54.1]} 3. Nc3 {[%clk 0:03:00]} 3... d5 {[%clk 0:02:50.4]} 4.
cxd5 {[%clk 0:02:59.9]} 4... exd5 {[%clk 0:02:49.2]} 5. Bg5 {[%clk 0:02:59.5]}
5... c6 {[%clk 0:02:49.4]} 6. e3 {[%clk 0:02:59.4]} 6... Be7 {[%clk 0:02:48.8]}
7. Bd3 {[%clk 0:02:59.1]} 7... Nbd7 {[%clk 0:02:48.9]} 8. h3 {[%clk 0:02:55.4]}
8... Nf8 {[%clk 0:02:47.7]} 9. Nf3 {[%clk 0:02:54]} 9... Ne6 {[%clk 0:02:47.6]}
10. Bh4 {[%clk 0:02:54.2]} 10... g6 {[%clk 0:02:46.6]} 11. Qc2 {[%clk
0:02:53.6]} 11... Ng7 {[%clk 0:02:45.5]} 12. g4 {[%clk 0:02:26.9]} 12... h5
{[%clk 0:02:45]} 13. Ne5 {[%clk 0:02:08.8]} 13... hxg4 {[%clk 0:02:33.9]} 14.
Bxg6 {[%clk 0:01:18.5]} 14... Be6 {[%clk 0:02:31.6]} 15. Bxf6 {[%clk 0:00:44.3]}
15... Bxf6 {[%clk 0:02:29.5]} 16. Bd3 {[%clk 0:00:42.8]} 16... gxh3 {[%clk
0:02:15.6]} 17. O-O-O {[%clk 0:00:42.5]} 17... Qe7 {[%clk 0:02:08.6]} 18. Kb1
{[%clk 0:00:39.4]} 18... O-O-O {[%clk 0:02:07.5]} 19. Na4 {[%clk 0:00:30]} 19...
Kb8 {[%clk 0:02:03.9]} 20. f4 {[%clk 0:00:24.6]} 20... Ka8 {[%clk 0:02:02.8]}
21. Nc5 {[%clk 0:00:22.6]} 21... Bc8 {[%clk 0:02:00.7]} 22. Qa4 {[%clk
0:00:21.8]} 22... Rd6 {[%clk 0:01:56.3]} 23. Rc1 {[%clk 0:00:22]} 23... Bf5
{[%clk 0:01:42.3]} 24. Rc3 {[%clk 0:00:18.8]} 24... Bxe5 {[%clk 0:01:34.8]} 25.
fxe5 {[%clk 0:00:17.1]} 25... Rg6 {[%clk 0:01:34.4]} 26. Ra3 {[%clk 0:00:15.4]}
26... b6 {[%clk 0:01:33.4]} 27. e6 {[%clk 0:00:10.9]} 27... Bxd3+ {[%clk
0:01:28]} 28. Nxd3 {[%clk 0:00:10.8]} 28... Rxe6 {[%clk 0:01:27.2]} 29. Ne5
{[%clk 0:00:09.1]} 29... Qb7 {[%clk 0:01:21.4]} 30. Rc3 {[%clk 0:00:08]} 30...
c5 {[%clk 0:01:17.9]} 31. Nf3 {[%clk 0:00:06.2]} 31... c4 {[%clk 0:01:16.7]} 32.
Rc2 {[%clk 0:00:04.7]} 32... Rxe3 {[%clk 0:01:14.6]} 33. Ne5 {[%clk 0:00:05.1]}
33... f6 {[%clk 0:01:13.3]} 34. Ng6 {[%clk 0:00:04.8]} 34... Rhe8 {[%clk
0:01:12.9]} 35. Rcc1 {[%clk 0:00:04.9]} 35... Nh5 {[%clk 0:01:11.9]} 36. Nh4
{[%clk 0:00:02.3]} 36... b5 {[%clk 0:01:02.5]} 37. Qb4 {[%clk 0:00:01.2]} 37...
Qd7 {[%clk 0:01:02.3]} 38. Ka1 {[%clk 0:00:01.2]} 38... Ng3 {[%clk 0:01:00.8]}
0-1

[Event "Early-Titled-Tuesday-Blitz-April-16-2024"]
[Site "Chess.com"]
[Date "2024.04.16"]
[Round "8"]
[White "CD3m"]
[Black "UnTucopalaTimba"]
[Result "1-0"]
[WhiteElo "2344"]
[BlackElo "2023"]
[TimeControl "180+1"]
[EndTime "9:30:51 PDT"]
[Termination "CD3m won by resignation"]

1. d4 {[%clk 0:02:59.3]} 1... Nf6 {[%clk 0:02:59.2]} 2. Bg5 {[%clk 0:02:59.6]}
2... e6 {[%clk 0:02:56]} 3. e4 {[%clk 0:02:59.6]} 3... Be7 {[%clk 0:02:51.8]} 4.
Nd2 {[%clk 0:02:59.1]} 4... d5 {[%clk 0:02:49.9]} 5. e5 {[%clk 0:02:58.6]} 5...
Nfd7 {[%clk 0:02:49.9]} 6. Bxe7 {[%clk 0:02:59.5]} 6... Qxe7 {[%clk 0:02:49.9]}
7. Bd3 {[%clk 0:02:59.8]} 7... c5 {[%clk 0:02:49.2]} 8. c3 {[%clk 0:03:00.4]}
8... Nc6 {[%clk 0:02:48.8]} 9. Ne2 {[%clk 0:03:00.4]} 9... a5 {[%clk 0:02:44.2]}
10. O-O {[%clk 0:02:59.7]} 10... b6 {[%clk 0:02:42.8]} 11. f4 {[%clk 0:02:45.3]}
11... Ba6 {[%clk 0:02:41.2]} 12. Bxa6 {[%clk 0:02:43.3]} 12... Rxa6 {[%clk
0:02:39.8]} 13. c4 {[%clk 0:02:42.7]} 13... cxd4 {[%clk 0:02:25.6]} 14. cxd5
{[%clk 0:02:42.2]} 14... exd5 {[%clk 0:02:24.8]} 15. Nf3 {[%clk 0:02:31.6]}
15... O-O {[%clk 0:02:07.1]} 16. Rc1 {[%clk 0:02:27.5]} 16... b5 {[%clk
0:01:55.5]} 17. Nexd4 {[%clk 0:02:23.1]} 17... Nxd4 {[%clk 0:01:53.9]} 18. Qxd4
{[%clk 0:02:18.7]} 18... Nb6 {[%clk 0:01:42.6]} 19. Rc6 {[%clk 0:02:14.3]} 19...
Qb7 {[%clk 0:01:34.9]} 20. Rfc1 {[%clk 0:01:39.8]} 20... Nc4 {[%clk 0:01:25.4]}
21. Rxa6 {[%clk 0:01:38.9]} 21... Qxa6 {[%clk 0:01:24.7]} 22. b3 {[%clk
0:01:38.5]} 22... Na3 {[%clk 0:01:13.4]} 23. Qxd5 {[%clk 0:01:17.1]} 23... Qg6
{[%clk 0:01:01]} 24. Qd6 {[%clk 0:00:47.5]} 24... Qe4 {[%clk 0:00:53.1]} 25.
Qxa3 {[%clk 0:00:45.1]} 25... Qxf4 {[%clk 0:00:39.7]} 26. Qc5 {[%clk 0:00:44.4]}
26... h6 {[%clk 0:00:32.7]} 27. Rf1 {[%clk 0:00:40.8]} 27... Rb8 {[%clk
0:00:24.4]} 28. Qd5 {[%clk 0:00:32.7]} 28... Qe3+ {[%clk 0:00:20.6]} 29. Kh1
{[%clk 0:00:32.9]} 29... Re8 {[%clk 0:00:17.9]} 30. Qxb5 {[%clk 0:00:28.1]}
30... g6 {[%clk 0:00:12.4]} 31. Qxe8+ {[%clk 0:00:27.5]} 1-0

[Event "Early-Titled-Tuesday-Blitz-April-16-2024"]
[Site "Chess.com"]
[Date "2024.04.16"]
[Round "8"]
[White "dontcatchmeifyoucant"]
[Black "GreenPeach24"]
[Result "1-0"]
[WhiteElo "2230"]
[BlackElo "2430"]
[TimeControl "180+1"]
[EndTime "9:30:53 PDT"]
[Termination "dontcatchmeifyoucant won by checkmate"]

1. e4 {[%clk 0:03:00.9]} 1... c6 {[%clk 0:03:00]} 2. d4 {[%clk 0:03:00]} 2... d5
{[%clk 0:03:00.2]} 3. e5 {[%clk 0:03:00.6]} 3... c5 {[%clk 0:03:00.6]} 4. dxc5
{[%clk 0:03:00.8]} 4... e6 {[%clk 0:03:01.1]} 5. Nf3 {[%clk 0:03:01.3]} 5...
Bxc5 {[%clk 0:03:00.3]} 6. a3 {[%clk 0:03:00.8]} 6... Ne7 {[%clk 0:02:56.5]} 7.
b4 {[%clk 0:03:00.9]} 7... Bb6 {[%clk 0:02:56.7]} 8. Bb2 {[%clk 0:03:01.5]} 8...
a5 {[%clk 0:02:56.4]} 9. Nbd2 {[%clk 0:03:01.4]} 9... Ba7 {[%clk 0:02:27.9]} 10.
Bd3 {[%clk 0:02:43.7]} 10... Nd7 {[%clk 0:02:14.1]} 11. O-O {[%clk 0:02:39.6]}
11... Ng6 {[%clk 0:02:14.2]} 12. g3 {[%clk 0:02:35.5]} 12... Qc7 {[%clk
0:02:04.4]} 13. Qe2 {[%clk 0:02:33.2]} 13... a4 {[%clk 0:01:48.5]} 14. c4 {[%clk
0:02:26.4]} 14... Nb6 {[%clk 0:01:47.9]} 15. c5 {[%clk 0:02:18.9]} 15... Nd7
{[%clk 0:01:43.8]} 16. Rac1 {[%clk 0:02:09.2]} 16... Bb8 {[%clk 0:01:36.4]} 17.
Rfe1 {[%clk 0:02:09.2]} 17... O-O {[%clk 0:01:29.2]} 18. h4 {[%clk 0:02:09.4]}
18... h6 {[%clk 0:01:27]} 19. h5 {[%clk 0:02:02.6]} 19... Ne7 {[%clk 0:01:25.5]}
20. g4 {[%clk 0:02:02.1]} 20... f5 {[%clk 0:01:20.5]} 21. exf6 {[%clk
0:02:01.2]} 21... Nxf6 {[%clk 0:01:18.8]} 22. Ne5 {[%clk 0:01:50.3]} 22... Qd8
{[%clk 0:01:18.3]} 23. Ndf3 {[%clk 0:01:45.5]} 23... Qe8 {[%clk 0:00:50.6]} 24.
Nh4 {[%clk 0:01:32.7]} 24... Nc6 {[%clk 0:00:45.3]} 25. Neg6 {[%clk 0:01:29.3]}
25... e5 {[%clk 0:00:39.8]} 26. Nxf8 {[%clk 0:01:24.6]} 26... Bxg4 {[%clk
0:00:29.3]} 27. f3 {[%clk 0:01:19]} 27... Bxh5 {[%clk 0:00:29]} 28. Nfg6 {[%clk
0:01:11.6]} 28... e4 {[%clk 0:00:28.2]} 29. Bxf6 {[%clk 0:01:11.2]} 29... gxf6
{[%clk 0:00:18.7]} 30. Qg2 {[%clk 0:01:06.7]} 30... Bxg6 {[%clk 0:00:11.5]} 31.
Nxg6 {[%clk 0:01:06.4]} 31... f5 {[%clk 0:00:11]} 32. fxe4 {[%clk 0:01:02.6]}
32... fxe4 {[%clk 0:00:11]} 33. Bxe4 {[%clk 0:00:55.3]} 33... dxe4 {[%clk
0:00:11]} 34. Rxe4 {[%clk 0:00:55.9]} 34... Qf7 {[%clk 0:00:08.7]} 35. Rf1
{[%clk 0:00:54]} 35... Qd7 {[%clk 0:00:01.9]} 36. Ne7+ {[%clk 0:00:50.1]} 36...
Kh7 {[%clk 0:00:01.9]} 37. Qg6+ {[%clk 0:00:49]} 37... Kh8 {[%clk 0:00:01.9]}
38. Qg8# {[%clk 0:00:49.6]} 1-0

[Event "Early-Titled-Tuesday-Blitz-April-16-2024"]
[Site "Chess.com"]
[Date "2024.04.16"]
[Round "8"]
[White "GeorgiosSouleidis"]
[Black "Bastiandash"]
[Result "1-0"]
[WhiteElo "2662"]
[BlackElo "2533"]
[TimeControl "180+1"]
[EndTime "9:30:55 PDT"]
[Termination "GeorgiosSouleidis won by resignation"]

1. e4 {[%clk 0:03:00.9]} 1... c5 {[%clk 0:02:58.6]} 2. Be2 {[%clk 0:03:00.9]}
2... e6 {[%clk 0:02:59.5]} 3. d3 {[%clk 0:03:01.2]} 3... d5 {[%clk 0:02:59.3]}
4. f4 {[%clk 0:03:01.2]} 4... Nc6 {[%clk 0:02:59.6]} 5. Nf3 {[%clk 0:03:01.1]}
5... g6 {[%clk 0:03:00.1]} 6. O-O {[%clk 0:02:59.7]} 6... Bg7 {[%clk 0:03:00.4]}
7. c3 {[%clk 0:03:00.4]} 7... Nge7 {[%clk 0:03:00.9]} 8. Na3 {[%clk 0:03:00.7]}
8... O-O {[%clk 0:03:00.6]} 9. Nc2 {[%clk 0:03:01]} 9... c4 {[%clk 0:02:43.7]}
10. e5 {[%clk 0:02:56.9]} 10... cxd3 {[%clk 0:02:43.1]} 11. Bxd3 {[%clk
0:02:57.8]} 11... Bd7 {[%clk 0:02:30.6]} 12. Ncd4 {[%clk 0:02:57.1]} 12... Nxd4
{[%clk 0:02:29.6]} 13. Nxd4 {[%clk 0:02:58]} 13... Rc8 {[%clk 0:02:30]} 14. Be3
{[%clk 0:02:58.4]} 14... a6 {[%clk 0:02:20.8]} 15. Qe2 {[%clk 0:02:57.6]} 15...
Nc6 {[%clk 0:02:20.5]} 16. Nxc6 {[%clk 0:02:50.3]} 16... Bxc6 {[%clk 0:02:21.4]}
17. Bd4 {[%clk 0:02:50.3]} 17... Re8 {[%clk 0:02:14.6]} 18. a3 {[%clk
0:02:50.3]} 18... Qd7 {[%clk 0:02:08.3]} 19. g4 {[%clk 0:02:50.6]} 19... Bb5
{[%clk 0:02:06.9]} 20. Bxb5 {[%clk 0:02:45.6]} 20... axb5 {[%clk 0:02:07.8]} 21.
Rae1 {[%clk 0:02:42.6]} 21... Rc4 {[%clk 0:02:01.1]} 22. Qg2 {[%clk 0:02:42.1]}
22... Kh8 {[%clk 0:01:59.3]} 23. Kh1 {[%clk 0:02:42.2]} 23... Qe7 {[%clk
0:01:52.5]} 24. Qg3 {[%clk 0:02:41.9]} 24... f5 {[%clk 0:01:45.2]} 25. gxf5
{[%clk 0:02:30.5]} 25... gxf5 {[%clk 0:01:41.7]} 26. Rg1 {[%clk 0:02:30.3]}
26... Rg8 {[%clk 0:01:41.9]} 27. Qh3 {[%clk 0:02:28]} 27... Qf7 {[%clk
0:01:36.3]} 28. Rg2 {[%clk 0:02:25.2]} 28... Bf8 {[%clk 0:01:36.6]} 29. Rxg8+
{[%clk 0:02:24.3]} 29... Qxg8 {[%clk 0:01:37.5]} 30. Rg1 {[%clk 0:02:24.9]}
30... Qf7 {[%clk 0:01:38.1]} 31. Qh4 {[%clk 0:02:18]} 31... Be7 {[%clk
0:01:31.3]} 32. Qh6 {[%clk 0:02:18.2]} 32... Rc8 {[%clk 0:01:28.6]} 33. Rg3
{[%clk 0:02:11.8]} 33... Rg8 {[%clk 0:01:28.1]} 34. Kg2 {[%clk 0:02:11.1]} 34...
Rxg3+ {[%clk 0:01:24.7]} 35. hxg3 {[%clk 0:02:12]} 35... Qg6 {[%clk 0:01:20.4]}
36. Qh1 {[%clk 0:02:01.9]} 36... Qg4 {[%clk 0:01:18.1]} 37. Qf1 {[%clk
0:02:00.2]} 37... h5 {[%clk 0:01:13.9]} 38. Qxb5 {[%clk 0:01:56.3]} 38... Kg7
{[%clk 0:01:12.4]} 39. Qe8 {[%clk 0:01:01]} 39... Qe2+ {[%clk 0:00:31.7]} 40.
Bf2 {[%clk 0:01:00.8]} 40... Bc5 {[%clk 0:00:28.8]} 41. Qd7+ {[%clk 0:00:53.5]}
41... Kg8 {[%clk 0:00:22.6]} 42. Qc8+ {[%clk 0:00:52.3]} 42... Bf8 {[%clk
0:00:22.4]} 43. Qxe6+ {[%clk 0:00:52.3]} 43... Kh8 {[%clk 0:00:23]} 44. Qxf5
{[%clk 0:00:47.5]} 44... Qxb2 {[%clk 0:00:18.9]} 45. Qxf8+ {[%clk 0:00:47.1]}
1-0

[Event "Early-Titled-Tuesday-Blitz-April-16-2024"]
[Site "Chess.com"]
[Date "2024.04.16"]
[Round "8"]
[White "Trendle"]
[Black "GlavkonVVS"]
[Result "1-0"]
[WhiteElo "2620"]
[BlackElo "2578"]
[TimeControl "180+1"]
[EndTime "9:30:59 PDT"]
[Termination "Trendle won by resignation"]

1. d4 {[%clk 0:02:56.8]} 1... Nf6 {[%clk 0:03:00.1]} 2. c4 {[%clk 0:02:56]} 2...
c5 {[%clk 0:03:00.4]} 3. Nf3 {[%clk 0:02:50.8]} 3... cxd4 {[%clk 0:03:00.4]} 4.
Nxd4 {[%clk 0:02:50.6]} 4... Nc6 {[%clk 0:03:01]} 5. Nc3 {[%clk 0:02:49]} 5...
d6 {[%clk 0:03:01.4]} 6. g3 {[%clk 0:02:48.6]} 6... Bd7 {[%clk 0:03:01.1]} 7.
Bg2 {[%clk 0:02:48.4]} 7... e6 {[%clk 0:03:01.7]} 8. O-O {[%clk 0:02:48.1]} 8...
a6 {[%clk 0:03:01.2]} 9. b3 {[%clk 0:02:43.5]} 9... Rc8 {[%clk 0:03:01.1]} 10.
Bb2 {[%clk 0:02:43.3]} 10... Be7 {[%clk 0:03:01.2]} 11. Nxc6 {[%clk 0:02:34.6]}
11... Bxc6 {[%clk 0:03:01]} 12. e4 {[%clk 0:02:33.9]} 12... h5 {[%clk
0:02:56.4]} 13. h3 {[%clk 0:02:32]} 13... Qa5 {[%clk 0:02:52.5]} 14. Re1 {[%clk
0:02:24.6]} 14... b5 {[%clk 0:02:50.3]} 15. Nd5 {[%clk 0:02:03.4]} 15... exd5
{[%clk 0:02:45.4]} 16. exd5 {[%clk 0:02:04.3]} 16... Bd7 {[%clk 0:02:40.3]} 17.
Qe2 {[%clk 0:01:52.9]} 17... Qd8 {[%clk 0:02:38.9]} 18. Qe3 {[%clk 0:01:27.6]}
18... Kf8 {[%clk 0:02:33]} 19. Qd4 {[%clk 0:01:19.3]} 19... bxc4 {[%clk
0:02:23.8]} 20. bxc4 {[%clk 0:01:18.2]} 20... Rh6 {[%clk 0:02:14.3]} 21. Re3
{[%clk 0:01:15.9]} 21... Kg8 {[%clk 0:02:02]} 22. Rae1 {[%clk 0:01:13.4]} 22...
Bf8 {[%clk 0:02:02.2]} 23. f3 {[%clk 0:01:00.6]} 23... Qc7 {[%clk 0:01:57.1]}
24. Bf1 {[%clk 0:00:59.1]} 24... Qc5 {[%clk 0:01:44]} 25. Qf4 {[%clk 0:00:58.7]}
25... Rg6 {[%clk 0:01:34.9]} 26. Bd3 {[%clk 0:00:49.7]} 26... Bxh3 {[%clk
0:01:16.4]} 27. Kh2 {[%clk 0:00:45.4]} 27... Bd7 {[%clk 0:01:09.4]} 28. Bxg6
{[%clk 0:00:45]} 28... fxg6 {[%clk 0:01:09.4]} 29. Bxf6 {[%clk 0:00:44.6]} 29...
gxf6 {[%clk 0:01:07.4]} 30. Qxf6 {[%clk 0:00:45.5]} 30... Bf5 {[%clk 0:01:01.7]}
31. g4 {[%clk 0:00:40]} 31... hxg4 {[%clk 0:00:56.6]} 32. fxg4 {[%clk
0:00:38.8]} 32... Bg7 {[%clk 0:00:56.2]} 33. Re8+ {[%clk 0:00:34]} 33... Rxe8
{[%clk 0:00:56.3]} 34. Rxe8+ {[%clk 0:00:34]} 34... Kh7 {[%clk 0:00:55.8]} 35.
Qh4+ {[%clk 0:00:33.9]} 35... Bh6 {[%clk 0:00:51.3]} 36. gxf5 {[%clk 0:00:29.8]}
36... g5 {[%clk 0:00:43.9]} 37. Re7+ {[%clk 0:00:19.1]} 37... Kg8 {[%clk
0:00:43.2]} 38. Qe1 {[%clk 0:00:18.3]} 38... Qxc4 {[%clk 0:00:36.1]} 39. Qe6+
{[%clk 0:00:17]} 1-0

[Event "Early-Titled-Tuesday-Blitz-April-16-2024"]
[Site "Chess.com"]
[Date "2024.04.16"]
[Round "8"]
[White "Bulatova_Kamaliya"]
[Black "Gumugama"]
[Result "0-1"]
[WhiteElo "2376"]
[BlackElo "2265"]
[TimeControl "180+1"]
[EndTime "9:31:02 PDT"]
[Termination "Gumugama won by resignation"]

1. d4 {[%clk 0:03:00.9]} 1... Nf6 {[%clk 0:02:54.2]} 2. Nc3 {[%clk 0:02:59.4]}
2... d5 {[%clk 0:02:53.1]} 3. Bf4 {[%clk 0:02:58.7]} 3... g6 {[%clk 0:02:49.1]}
4. Nb5 {[%clk 0:02:49.4]} 4... Na6 {[%clk 0:02:47.1]} 5. e3 {[%clk 0:02:47.5]}
5... Bg7 {[%clk 0:02:42.6]} 6. h4 {[%clk 0:02:37.6]} 6... h5 {[%clk 0:02:40.3]}
7. c4 {[%clk 0:02:28.1]} 7... c6 {[%clk 0:02:23.4]} 8. Nc3 {[%clk 0:02:25.1]}
8... dxc4 {[%clk 0:02:23.6]} 9. Bxc4 {[%clk 0:02:22.8]} 9... b5 {[%clk 0:02:23]}
10. Be2 {[%clk 0:01:56.5]} 10... O-O {[%clk 0:02:14.8]} 11. Nf3 {[%clk 0:01:55]}
11... Bf5 {[%clk 0:02:12.5]} 12. O-O {[%clk 0:01:52.1]} 12... Nb4 {[%clk
0:02:05]} 13. Ne5 {[%clk 0:01:41.5]} 13... Qb6 {[%clk 0:01:42.1]} 14. a3 {[%clk
0:01:17.7]} 14... Nbd5 {[%clk 0:01:41.1]} 15. Bg3 {[%clk 0:01:17.3]} 15... Nxc3
{[%clk 0:01:31.1]} 16. bxc3 {[%clk 0:01:18.2]} 16... Ne4 {[%clk 0:01:31.2]} 17.
Bf4 {[%clk 0:00:52.7]} 17... Nxc3 {[%clk 0:01:29.1]} 18. Qd2 {[%clk 0:00:53]}
18... Nxe2+ {[%clk 0:01:27.9]} 19. Qxe2 {[%clk 0:00:53.2]} 19... c5 {[%clk
0:01:24.3]} 20. e4 {[%clk 0:00:51.7]} 20... Bc8 {[%clk 0:01:13.4]} 21. d5 {[%clk
0:00:49.2]} 21... a5 {[%clk 0:00:58.8]} 22. Rab1 {[%clk 0:00:38]} 22... b4
{[%clk 0:00:58.5]} 23. axb4 {[%clk 0:00:37.3]} 23... axb4 {[%clk 0:00:54.9]} 24.
Nc6 {[%clk 0:00:35.5]} 24... Ba6 {[%clk 0:00:48.2]} 25. Nxe7+ {[%clk 0:00:32.7]}
25... Kh7 {[%clk 0:00:48.4]} 26. Qf3 {[%clk 0:00:23.8]} 26... Bxf1 {[%clk
0:00:46.3]} 27. Rxf1 {[%clk 0:00:24.4]} 27... b3 {[%clk 0:00:32.8]} 28. e5
{[%clk 0:00:16.4]} 28... b2 {[%clk 0:00:30.7]} 29. Rb1 {[%clk 0:00:14.9]} 29...
Ra1 {[%clk 0:00:29.5]} 30. Qd3 {[%clk 0:00:14.3]} 30... Rxb1+ {[%clk 0:00:28.6]}
31. Qxb1 {[%clk 0:00:13.2]} 31... Ra8 {[%clk 0:00:29.3]} 32. Kh2 {[%clk
0:00:10.6]} 32... Ra1 {[%clk 0:00:28.8]} 33. Qe4 {[%clk 0:00:08.5]} 33... b1=Q
{[%clk 0:00:28.5]} 0-1

[Event "Early-Titled-Tuesday-Blitz-April-16-2024"]
[Site "Chess.com"]
[Date "2024.04.16"]
[Round "8"]
[White "cristiano78"]
[Black "MrVenky"]
[Result "0-1"]
[WhiteElo "2280"]
[BlackElo "2532"]
[TimeControl "180+1"]
[EndTime "9:31:04 PDT"]
[Termination "MrVenky won by resignation"]

1. d4 {[%clk 0:03:00.3]} 1... Nf6 {[%clk 0:02:59.4]} 2. c4 {[%clk 0:03:00.6]}
2... g6 {[%clk 0:02:58.9]} 3. Nf3 {[%clk 0:03:00.6]} 3... Bg7 {[%clk 0:02:59.2]}
4. Nc3 {[%clk 0:03:01.2]} 4... d6 {[%clk 0:02:57.7]} 5. e4 {[%clk 0:03:00.3]}
5... O-O {[%clk 0:02:57.7]} 6. Be2 {[%clk 0:03:00.5]} 6... Na6 {[%clk
0:02:55.2]} 7. O-O {[%clk 0:02:58.4]} 7... c6 {[%clk 0:02:53.2]} 8. Be3 {[%clk
0:02:58.2]} 8... Ng4 {[%clk 0:02:52.1]} 9. Bg5 {[%clk 0:02:58]} 9... h6 {[%clk
0:02:51.6]} 10. Bh4 {[%clk 0:02:57.3]} 10... g5 {[%clk 0:02:49.4]} 11. Bg3
{[%clk 0:02:57]} 11... c5 {[%clk 0:02:40]} 12. Rc1 {[%clk 0:02:53.2]} 12... cxd4
{[%clk 0:02:37.7]} 13. Nxd4 {[%clk 0:02:53.2]} 13... Ne5 {[%clk 0:02:37.7]} 14.
b3 {[%clk 0:02:52.6]} 14... Nc5 {[%clk 0:02:36.4]} 15. Kh1 {[%clk 0:02:47.3]}
15... Ned3 {[%clk 0:02:23.5]} 16. Bxd3 {[%clk 0:02:41.4]} 16... Bxd4 {[%clk
0:02:21]} 17. Nd5 {[%clk 0:02:30.1]} 17... Bg7 {[%clk 0:02:07.4]} 18. f4 {[%clk
0:02:26]} 18... e6 {[%clk 0:02:07.1]} 19. Ne3 {[%clk 0:02:24.8]} 19... gxf4
{[%clk 0:02:05.6]} 20. Bxf4 {[%clk 0:02:24.8]} 20... Qb6 {[%clk 0:02:01.3]} 21.
Bb1 {[%clk 0:02:23.6]} 21... Nd7 {[%clk 0:01:48.9]} 22. Qxd6 {[%clk 0:02:19.2]}
22... Qxd6 {[%clk 0:01:37.1]} 23. Bxd6 {[%clk 0:02:18.3]} 23... Re8 {[%clk
0:01:37.3]} 24. Ng4 {[%clk 0:02:16.1]} 24... h5 {[%clk 0:01:35.5]} 25. Nf2
{[%clk 0:02:14.1]} 25... b6 {[%clk 0:01:35.4]} 26. Nd3 {[%clk 0:02:07.1]} 26...
Bb7 {[%clk 0:01:34.8]} 27. e5 {[%clk 0:02:07.1]} 27... Rad8 {[%clk 0:01:34.3]}
28. Rce1 {[%clk 0:02:04.9]} 28... Bf8 {[%clk 0:01:22.7]} 29. Bxf8 {[%clk
0:02:02.2]} 29... Nxf8 {[%clk 0:01:22.7]} 30. Nf4 {[%clk 0:02:02.6]} 30... Rd2
{[%clk 0:01:22.5]} 31. Nxh5 {[%clk 0:01:46.1]} 31... Bxg2+ {[%clk 0:01:21.3]}
32. Kg1 {[%clk 0:01:45.8]} 32... Bxf1 {[%clk 0:01:17.7]} 33. Nf6+ {[%clk
0:01:43.9]} 33... Kh8 {[%clk 0:01:17.8]} 34. Nxe8 {[%clk 0:01:42.1]} 34... Bh3
{[%clk 0:01:17.1]} 35. Nd6 {[%clk 0:01:34]} 35... f5 {[%clk 0:01:13.6]} 36. Re3
{[%clk 0:01:11.2]} 36... Bg4 {[%clk 0:01:12.5]} 37. Bd3 {[%clk 0:01:10]} 37...
f4 {[%clk 0:01:09.1]} 38. Re4 {[%clk 0:01:07.9]} 38... Rxd3 {[%clk 0:01:06.8]}
39. Rxf4 {[%clk 0:01:07.7]} 39... Bf5 {[%clk 0:01:05.8]} 40. Nxf5 {[%clk
0:01:04.5]} 40... exf5 {[%clk 0:01:02]} 41. Rxf5 {[%clk 0:01:04.7]} 41... Kg7
{[%clk 0:01:02.1]} 42. Rf6 {[%clk 0:00:59.4]} 42... Nd7 {[%clk 0:00:58.3]} 43.
Rd6 {[%clk 0:00:57.4]} 43... Nxe5 {[%clk 0:00:56.7]} 44. Rxd3 {[%clk 0:00:56.6]}
44... Nxd3 {[%clk 0:00:56.5]} 45. Kg2 {[%clk 0:00:54.7]} 45... Nc1 {[%clk
0:00:56.6]} 46. b4 {[%clk 0:00:53.2]} 46... Nxa2 {[%clk 0:00:56.5]} 47. c5
{[%clk 0:00:53.9]} 47... Nxb4 {[%clk 0:00:54.5]} 48. cxb6 {[%clk 0:00:54]} 48...
a5 {[%clk 0:00:48.9]} 49. Kf2 {[%clk 0:00:37.5]} 49... a4 {[%clk 0:00:48.7]} 50.
Ke2 {[%clk 0:00:38.3]} 50... a3 {[%clk 0:00:48.9]} 51. Kd2 {[%clk 0:00:33]}
51... a2 {[%clk 0:00:49]} 0-1